Cogmind - Beta 10.2 @@@ ROGUE MODE // 2022.01.19 @ 05:28:43 Player: SergeMan Result: Destroyed by D-53 Grenadier with Mini Grenade Launcher Performance ------------- Evolutions (0) 0 Regions Visited (2) 400 Robots Destroyed (18) 90 Value Destroyed (387) 387 Prototype IDs (2) 40 Alien Tech Used (0) 0 Bonus (0) 0 TOTAL SCORE: 917 Bonus ------- None Cogmind --------- Core Integrity 0/250 Matter 180/300 Energy 124/250 System Corruption 0% Temperature Cool (0) Movement Rolling (100) Ox2 Location -10/Mines Parts ------- > --- POWER (1) -------- Ion Engine > --- PROPULSION (2) --- Wheel > --- UTILITY (2) ------ Large Storage Unit > --- WEAPON (2) ------- (None) > --- INVENTORY (10) --- Large Storage Unit Particle Gun Particle Gun Assault Rifle Light Assault Rifle Light Assault Rifle Grenade Launcher Peak State ------------ > --- POWER ------------ Ion Engine > --- PROPULSION ------- Light Treads Wheel > --- UTILITY ---------- Large Storage Unit Hacking Suite > --- WEAPON ----------- Particle Gun Particle Gun > --- INVENTORY -------- Ion Engine Light Treads Large Storage Unit Particle Gun Particle Gun Assault Rifle Light Assault Rifle Light Assault Rifle Grenade Launcher [Rating: 12] Favorites ----------- Power Ion Engine Engine Ion Engine Propulsion Light Treads Treads Light Treads Leg Aluminum Leg Wheel Wheel Utility Large Storage Unit Storage Large Storage Unit Hackware Hacking Suite Weapon Assault Rifle Energy Gun Particle Gun Ballistic Gun Assault Rifle Launcher Grenade Launcher Build | -11 -10 -10 ------- Run | Scr Mat Min Slots Evolved . | . . . Power . | . . . Propulsion . | . . . Utility . | . . . Weapon . | . . . Parts Attached 23 | 2 17 4 Power 3 | . 2 1 Engine 3 | . 2 1 Core . | . . . Reactor . | . . . Propulsion 12 | 2 8 2 Treads 7 | 1 5 1 Leg . | . . . Wheel 5 | 1 3 1 Hover . | . . . Flight . | . . . Utility 3 | . 3 . Device . | . . . Storage 2 | . 2 . Processor . | . . . Hackware 1 | . 1 . Protection . | . . . Artifact . | . . . Weapon 5 | . 4 1 Energy Gun 4 | . 3 1 Energy Cannon . | . . . Ballistic Gun . | . . . Ballistic Cannon . | . . . Launcher 1 | . 1 . Special Weapon . | . . . Impact Weapon . | . . . Slashing Weapon . | . . . Piercing Weapon . | . . . Special Melee Weapon . | . . . Unidentified Prototypes . | . . . Parts Lost 6 | . . 6 Power 1 | . . 1 Propulsion 2 | . . 2 Utility 1 | . . 1 Weapon 2 | . . 2 Highest Loss Streak 6 | . . 6 Average Slot Usage (%) 97 | . 97 93 Engine 14 | . 14 14 Treads 19 | . 19 14 Wheel 8 | . 8 12 Storage 16 | . 16 14 Hackware 10 | . 9 14 Energy Gun 12 | . 12 12 Ballistic Gun 15 | . 15 12 Naked Turns . | . . . Heaviest Build 38 | 10 38 26 Greatest Support 40 | 10 40 40 Greatest Overweight (x) 2 | . 2 2 Average Overweight (x) 1 | . 1 1 Largest Inventory Capacity 16 | 6 16 10 Average Capacity 10 | 6 10 10 Most Carried 10 | 6 10 9 Average Carried 7 | 4 7 8 Final Capacity 10 | 6 10 10 Final Carried 9 | 4 9 7 Class Distribution -------------------- 100% | Mutant Dominant Class ---------------- Mutant | -10/Materials Mutant | -10/Mines Resources | -11 -10 -10 ----------- Run | Scr Mat Min Matter Collected 440 | 212 228 . Remotely . | . . . Salvage Created 420 | . 420 . Parts 33 | . 33 . Haulers Intercepted 1 | . 1 . Recyclers Shooed . | . . . Parts Field Recycled . | . . . Retrieved Matter . | . . . Parts Self-Destructed . | . . . Prevented . | . . . Kills | -11 -10 -10 ------- Run | Scr Mat Min Combat Hostiles Destroyed 13 | . 13 . Guns 7 | . 7 . AOE 6 | . 6 . Classes Destroyed 5 | . 5 . Hauler 1 | . 1 . Operator 1 | . 1 . Watcher 3 | . 3 . Swarmer 6 | . 6 . Grunt 7 | . 7 . Best Kill Streak 6 | . 6 . Combat Bots Only 6 | . 6 . Max Kills in Single Turn 2 | . 2 . Gunslinging . | . . . Exploded 2 | . 2 . Melee . | . . . Uniques/NPCs Destroyed . | . . . Combat | -11 -10 -10 -------- Run | Scr Mat Min Damage Taken 1102 | . 427 675 Core 268 | . 84 184 Absorbed by Shields . | . . . Core Remaining (%) 100 | 100 . . Volleys Fired 42 | . 42 . Largest 2 | . 2 . Hottest 85 | . 85 . Shots Fired 81 | . 81 . Gun 78 | . 78 . Cannon . | . . . Launcher 3 | . 3 . Special . | . . . Kinetic 46 | . 46 . Thermal 32 | . 32 . Explosive 3 | . 3 . Electromagnetic . | . . . Robot Hit Streak 7 | . 7 . Robot Miss Streak 2 | . 2 . Penetration Max . | . . . Secondary Targets 1 | . 1 . Max Gunslinging Chain 1 | . 1 . Shots Hit Robots 53 | . 53 . Core Hits 28 | . 28 . Critical Hits 2 | . 2 . Critical Kills . | . . . Critical Parts Destroyed 2 | . 2 . Melee Attacks . | . . . Impact . | . . . Slashing . | . . . Piercing . | . . . Sneak Attacks . | . . . Combat Hostiles . | . . . Follow-up Attacks . | . . . Damage Inflicted 934 | . 934 . Guns 620 | . 620 . Cannons . | . . . Explosions 314 | . 314 . Melee . | . . . Ramming . | . . . Kinetic 330 | . 330 . Thermal 290 | . 290 . Explosive 314 | . 314 . Electromagnetic . | . . . Impact . | . . . Slashing . | . . . Piercing . | . . . Highest Corruption . | . . . Average Corruption . | . . . Corruption Purged . | . . . Overload Shots . | . . . Overflow Damage . | . . . Projectiles . | . . . Explosions . | . . . Melee . | . . . Knockbacks . | . . . Impact . | . . . Kinetic . | . . . Secondary . | . . . Self-Inflicted Damage 44 | . 44 . Shots 3 | . 3 . Rammed . | . . . Targets Rammed . | . . . Kicked . | . . . Crushed . | . . . Highest Temperature 291 | . 291 . Average Temperature 99 | . 99 . Received Heat Transfer 93 | . 93 . Siege Activations . | . . . Robots Corrupted . | . . . Combat Hostiles . | . . . Parts Fried . | . . . Impact Corruptions . | . . . Robots Melted . | . . . Combat Hostiles . | . . . Parts Melted . | . . . Heat Transferred 670 | . 670 . Parts Sabotaged . | . . . Parts Stolen . | . . . Parts Stripped . | . . . Power Chain Reactions . | . . . Missiles Intercepted . | . . . Alert | -11 -10 -10 ------- Run | Scr Mat Min Peak Influence 359 | . 359 44 Initial 44 | . . 44 Average 139 | . 145 38 Maximum Alert Level 1 | . 1 . Low Security (%) 64 | 100 62 100 Level 1 35 | . 37 . Level 2 . | . . . Level 3 . | . . . Level 4 . | . . . Level 5 . | . . . High Security . | . . . Max Security . | . . . Squads Dispatched 2 | . 2 . Investigation 1 | . 1 . Extermination . | . . . Reinforcement 1 | . 1 . Assault . | . . . Garrison . | . . . Intercept . | . . . Construction Impeded . | . . . Haulers Reinforced . | . . . Stealth | -11 -10 -10 --------- Run | Scr Mat Min Distress Signals 2 | . 2 . Communications Jammed . | . . . Distress Signals . | . . . Times Spotted 29 | . 27 2 Peak Tracking Total 6 | . 6 2 Tactical Retreats 3 | . 3 . Traps | -11 -10 -10 ------- Run | Scr Mat Min Traps Triggered 2 | . 2 . Indirectly . | . . . Trap Hack Attempts . | . . . Triggered . | . . . Disarmed . | . . . Reprogrammed . | . . . Reused . | . . . Traps Extracted . | . . . Installed . | . . . Triggered . | . . . Machines | -11 -10 -10 ---------- Run | Scr Mat Min Machines Disabled 1 | . 1 . Max in Single Turn 1 | . 1 . Machines Sabotaged . | . . . Garrisons Compromised . | . . . Overloaded Fab Kills . | . . . Fab Network Shutdowns . | . . . Hacking | -11 -10 -10 --------- Run | Scr Mat Min Machines Accessed 10 | . 10 . Terminals 7 | . 7 . Fabricators . | . . . Repair Stations 1 | . 1 . Recycling Units 2 | . 2 . Scanalyzers . | . . . Garrison Access . | . . . Total Hacks 42 | . 42 . Successful 35 | . 35 . Failed 7 | . 7 . Catastrophic . | . . . Database Lockouts . | . . . Manual 26 | . 26 . Terminals 33 | . 33 . Fabricators . | . . . Repair Stations 3 | . 3 . Recycling Units 6 | . 6 . Scanalyzers . | . . . Garrison Access . | . . . Terminal Hacks 11 | . 11 . Prototype ID Bank 1 | . 1 . Branch Access Points 1 | . 1 . Emergency Access Points 2 | . 2 . Alert Level 2 | . 2 . Unreport Threat 1 | . 1 . Locate Traps 1 | . 1 . Zone Layout 3 | . 3 . Fabricator Hacks . | . . . Repair Station Hacks 2 | . 2 . Scan Component 1 | . 1 . Repair 1 | . 1 . Recycling Unit Hacks 2 | . 2 . Report Inventory 2 | . 2 . Scanalyzer . | . . . Garrison Access Hacks . | . . . Unauthorized Hacks 20 | . 20 . Terminals 15 | . 15 . Track 5 | . 5 . Assimilate 5 | . 5 . Botnet 5 | . 5 . Fabricators . | . . . Repair Stations 1 | . 1 . Mechanics 1 | . 1 . Recycling Units 4 | . 4 . Reject 2 | . 2 . Recyclers 2 | . 2 . Scanalyzers . | . . . Garrison Access . | . . . Data Cores Recovered . | . . . Used . | . . . Hacking Detections 4 | . 4 . Full Trace Events 2 | . 2 . Feedback Events . | . . . Feedback Blocked . | . . . Robot Schematics Acquired . | . . . Robots Built . | . . . Matter . | . . . Time . | . . . Total Robot Build Rating . | . . . Part Schematics Acquired . | . . . Parts Built . | . . . Matter . | . . . Time . | . . . Total Part Build Rating . | . . . Parts Repaired 1 | . 1 . Time 26 | . 26 . Parts Recycled . | . . . Recycled Matter . | . . . Retrieved Matter . | . . . Retrieved Components . | . . . Parts Scanalyzed . | . . . Part Schematics Acquired . | . . . Parts Damaged . | . . . Bothacking | -11 -10 -10 ------------ Run | Scr Mat Min Used RIF Installer . | . . . Robots Hacked . | . . . Non-combat . | . . . Combat . | . . . Robot Hacks Applied . | . . . Relay Couplers Released . | . . . Robots Rewired . | . . . Allies Hacked . | . . . Hacks Repelled . | . . . Allies | -11 -10 -10 -------- Run | Scr Mat Min Total Allies . | . . . Largest Group . | . . . Highest-Rated Group . | . . . Highest-Rated Ally . | . . . Total Orders . | . . . Ally Attacks . | . . . Total Damage . | . . . Kills . | . . . Allies Corrupted . | . . . Allies Melted . | . . . Intel | -11 -10 -10 ------- Run | Scr Mat Min Robot Analysis Total . | . . . Derelict Logs Recovered . | . . . Drone Launches . | . . . Drone Recoveries . | . . . Exploration | -11 -10 -10 ------------- Run | Scr Mat Min Turns Passed 1264 | 6 1190 68 Spaces Moved 853 | 3 794 56 Core . | . . . Treads 270 | . 264 6 Legs . | . . . Wheels 583 | 3 530 50 Hover . | . . . Flight . | . . . Fastest Speed 80 | 80 80 100 Average Speed 117 | 80 118 107 Slowest Speed 180 | 80 180 180 Overloaded Moves . | . . . Propulsion Burnouts . | . . . Robots Hopped . | . . . Cave-ins Triggered . | . . . Exploration Rate (%) 38 | 2 99 15 Regions Visited 2 Branch Regions 1 Pre-discovered Areas . | . . . Known Exits Taken 1 | . 1 . Unknown Exits Taken 1 | 1 . . Scrap Searched . | . . . Spaces Dug . | . . . Terrain Destroyed 14 | . 14 . Melee . | . . . Projectile . | . . . AOE 14 | . 14 . Terrain Rammed . | . . . Walls Destroyed . | . . . Machines Disabled . | . . . Actions | -11 -10 -10 --------- Run | Scr Mat Min Total 1027 | 6 958 63 Wait 92 | . 89 3 Move 851 | 2 793 56 Hop . | . . . Pick Up 9 | . 9 . Fast Attach 2 | . 2 . Attach 3 | 1 . 2 Detach . | . . . Swap 18 | 1 15 2 Drop 10 | 2 8 . Fire 42 | . 42 . Melee . | . . . Ram . | . . . Kick . | . . . Crush . | . . . Escape Stasis . | . . . Rewire . | . . . Trap . | . . . Miscellaneous . | . . . Route ------- -11/Scrapyard -10/Materials (discovered 5 exits: [*Mat x3] / *Min x2) -10/Mines History --------- Turn | Location | Event 5 | -11/Scrapyard | Discovered new exit (range 2) 7 | -11/Scrapyard | Entered Materials 233 | -10/Materials | Identified exit to Mines 302 | -10/Materials | Build established: Mutant 531 | -10/Materials | Discovered new exit (range 13) 831 | -10/Materials | Repaired Lgt. Treads 920 | -10/Materials | Discovered new exit (range 8) 998 | -10/Materials | Discovered new exit (range 15) 1197 | -10/Materials | Entered Mines 1225 | -10/Mines | Assembled infested the area 1252 | -10/Mines | Core integrity fell below 50% 1262 | -10/Mines | Core integrity fell below 20% 1265 | -10/Mines | Destroyed by D-53 Grenadier with Mini Grenade Launcher Last Messages --------------- 01142_ R-06 Scavenger collects Aluminum Leg. 01162_ Dropped Lgt. Ion Engine. 01162_ Dropped Ion Engine. 01164_ Acquired Ion Engine. 01169_ Acquired Grenade Launcher. 01170_ Dropped Grenade Launcher. LOCATION=MINES GOAL=ESCAPE 01225_ ALERT: Infestation in the mines, dispatching Demolisher response squad. 01249_ C-30 ARC bursts open, deploying its payload. 01249_ D-53 Grenadier unfolds itself. 01252_ Particle Gun destroyed. 01255_ The unstable cave ceiling collapses. 01256_ Particle Gun destroyed. 01257_ Ion Engine destroyed. 01259_ The unstable cave ceiling collapses. 01259_ Lgt. Treads destroyed. 01262_ Hacking Suite destroyed. 01264_ Lgt. Treads destroyed. Map ----- +----------------------------------------------------+ | ???????????????????????????????????????? | | ???????????????????????????????????????? | | ???????????????????????????????????????? | | ???????????????????????????????????????? | | ???????????????????????????????????????? | | ???????????????????????????????????????? | | ???????????????????????????????????????? | | ???????????????????????????????????????? | | ???????????????????????????????????????? | | ???????????????????????????????????????? | | ???????????????????????????????????????? | | ???????????????????????????????????????? | | ???????????????????????????????????????? | | ???????????????????????????????????????? | | ????????#####??????????????????????????? | | ?????#### ##?????????????????????????? | | ????## ##????????????????????????? | | ????# ##???????????????????????? | | ????## # ###?????????????????????? | | ????# ##????????????????????? | | ????## ###??????????????????? | | ?????# ##?????????????????? | | ?????# #?????????????????? | | ?????## #?????????????????? | | ??????## #??????????????????? | | ???????## @ #??????#????????????? | | ????????## dd ##???? #????????????? | | ?????????## #??? #????????????? | | ??????????## % ##?# #????????????? | | ???????????## # ## #????????????? | | ????????????#### #????????????? | | ?????????????## #????????????? | | ?????????????# #????????????? | | ?????????????# #????????????? | | ?????????????# #????????????? | | ?????????????## ##????????????? | | ??????????????# ##????????????? | | ???####??????## ##???????????? | | ??## ##????## #???????????? | | ??# ##???# ## ???????? | | ??# ##??# ##?# ???????? | | ??# ##?# ##???# ###???????? | | ??# ### ##?????# #?????????? | | ??# #???????# ?????????? | | ??# #????????# ?????????? | | ??###### ##?????????? ??????????? | | ???????## ##??????????????????????? | | ????????## #???????????????????????? | | ?????????## #???????????????????????? | | ??????????## ##???????????????????????? | +----------------------------------------------------+ Best States ------------- Heat Dissipation 25 Energy Generation 10 Energy Capacity 250 Matter Stores 300 Matter Capacity 300 Sight Range 16 Terrain Scan Density 10 Evasion (%) 44 Recoil Reduction 2 Offensive Hacking 10 Item Schematics ----------------- None Robot Schematics ------------------ None Fabricated ------------ Nothing Alien Tech Used ----------------- None Achievements -------------- None Challenges ------------ None Game ------ Seed KineticIntegratedProtection Manual? 0 Play Time 00:14:44 Cumulative 57.9 hours Start 2022.01.19 @ 05:14:40 End 2022.01.19 @ 05:28:43 Sessions 1 Manual Loads 0 Difficulty Rogue Special Mode None Game No. 45 Rogue 45 Adventurer 0 Explorer 0 Win Type - Total 0 Types 0/0/0/0/0/0/0/0/0 Lore% 30 Gallery% 28 Achievement% 23 Wizard Run 0 Options --------- ASCII 0 Keyboard 0 Movement Numpad Keybinds 0 Fullscreen 2 Font 24/Smallcaps Map View 76x50 Tactical HUD 1 Map Filters NONE Filters NONE Steam 1 RUN: ece980aa-4d7c-49c7-9d6b-7e5898fc648e